bitfinex/quotes_BTCUSD_20241001
["timestamp","ask_amount","ask_price","bid_price","bid_amount"]
[1727756464754,0.23760093,63894.0,63893.0,0.44430554]
[1727756464972,0.23760093,63894.0,63893.0,0.45718677]
[1727756465180,0.02536099,63894.0,63893.0,0.45718677]
[1727756465858,0.02536099,63894.0,63893.0,0.46718677]
[1727756466731,0.02636099,63894.0,63893.0,0.47418677]
[1727756467146,0.02536099,63894.0,63893.0,0.46718677]
[1727756467362,0.02636099,63894.0,63893.0,0.47518677]
[1727756468025,0.001823,63894.0,63893.0,0.47518677]
[1727756468916,0.001823,63894.0,63893.0,0.55658677]
[1727756469619,0.001823,63894.0,63893.0,0.57958677]
[1727756470677,0.000823,63894.0,63893.0,0.57158677]
[1727756470903,0.02536061,63894.0,63893.0,0.57158677]
[1727756471114,0.02536061,63894.0,63893.0,0.56158677]
[1727756471559,0.02536061,63894.0,63893.0,0.57258677]
[1727756472071,0.02636061,63894.0,63893.0,0.58158677]
[1727756472290,0.02636061,63894.0,63893.0,0.57058677]
[1727756472521,0.02536061,63894.0,63893.0,0.57358677]
[1727756472747,0.02536061,63894.0,63893.0,0.56158677]
[1727756472966,0.02636061,63894.0,63893.0,0.57058677]
[1727756473196,0.02636061,63894.0,63893.0,0.58258677]
[1727756473458,0.02536061,63894.0,63893.0,0.57358677]
[1727756473686,0.02636061,63894.0,63893.0,0.58258677]
[1727756474721,0.02636061,63894.0,63893.0,0.57058677]
[1727756474954,0.02536061,63894.0,63893.0,0.57258677]
[1727756475168,0.02536061,63894.0,63893.0,0.56158677]
[1727756475392,0.02636061,63894.0,63893.0,0.58258677]
[1727756475616,0.02636061,63894.0,63893.0,0.57058677]
[1727756475849,0.02536061,63894.0,63893.0,0.57258677]
[1727756476300,0.02636061,63894.0,63893.0,0.58158677]
[1727756476512,0.02636061,63894.0,63893.0,0.59358677]
[1727756476720,0.02536061,63894.0,63893.0,0.58458677]
[1727756476970,0.02636061,63894.0,63893.0,0.59358677]
[1727756477807,0.02636061,63894.0,63893.0,0.57058677]
[1727756478051,0.02636061,63894.0,63893.0,0.55858677]
[1727756478288,0.02636061,63894.0,63893.0,0.1966742]
[1727756478514,0.02636061,63894.0,63893.0,0.1856742]
[1727756478731,0.001823,63894.0,63893.0,0.1976742]
[1727756479865,0.02636148,63894.0,63893.0,0.1976742]
[1727756486262,0.001823,63894.0,63893.0,0.1976742]
[1727756488209,0.001823,63894.0,63893.0,0.21667819]
[1727756488813,0.001823,63894.0,63893.0,0.1976742]
[1727756489022,0.001823,63894.0,63893.0,0.21667998]
[1727756489269,0.001823,63894.0,63893.0,0.24708072]
[1727756490832,0.001823,63894.0,63893.0,0.24706529]
[1727756491453,0.001823,63894.0,63893.0,0.26751874]
[1727756492004,0.001823,63894.0,63893.0,0.24706529]
[1727756492659,0.02636065,63894.0,63893.0,0.26748258]
[1727756494142,0.001823,63894.0,63893.0,0.26748258]
[1727756495334,0.001823,63894.0,63893.0,0.1976742]
[1727756495564,0.001823,63894.0,63893.0,0.26761558]
[1727756498069,0.02636098,63894.0,63893.0,0.26761558]
[1727756498288,0.02636098,63894.0,63893.0,0.24717517]
[1727756498490,0.001823,63894.0,63893.0,0.24717517]
[1727756499995,0.0263616,63894.0,63893.0,0.24717517]
[1727756501971,0.0263616,63894.0,63893.0,0.1976742]
[1727756502178,0.0263616,63894.0,63893.0,0.24724382]
[1727756505413,0.0263616,63894.0,63893.0,0.21673944]
[1727756505857,0.001823,63894.0,63893.0,0.24718836]
[1727756506309,0.001823,63894.0,63893.0,0.21673944]
[1727756506791,0.001823,63894.0,63893.0,0.24721482]
[1727756507490,0.04858151,63894.0,63893.0,0.24721482]
[1727756508256,0.001823,63894.0,63893.0,0.21673944]
[1727756508703,0.001823,63894.0,63893.0,0.21671158]
[1727756508926,0.02636154,63894.0,63893.0,0.24717133]
[1727756509148,0.02636154,63894.0,63893.0,0.21671158]
[1727756509360,0.09649931,63894.0,63893.0,0.21671158]
[1727756511349,0.09649931,63894.0,63893.0,0.1976742]
[1727756511569,0.09649931,63894.0,63893.0,0.21669655]
[1727756512053,0.09649931,63894.0,63893.0,0.1976742]
[1727756512499,0.29482793,63894.0,63893.0,0.21669683]
[1727756512741,0.29482793,63894.0,63893.0,0.21469683]
[1727756512999,0.31820719,63894.0,63893.0,0.1956742]
[1727756513260,0.31820719,63894.0,63893.0,0.1976742]
[1727756514155,0.29536385,63894.0,63893.0,0.21654824]
[1727756514382,0.29536385,63894.0,63893.0,0.1976742]
[1727756515101,0.29536101,63894.0,63893.0,0.1976742]
[1727756515598,0.27082247,63894.0,63893.0,0.1976742]
[1727756517138,0.27110201,63894.0,63893.0,0.1976742]
[1727756518434,0.20159147,63894.0,63893.0,0.1976742]
[1727756518646,0.02636174,63894.0,63893.0,0.1976742]
[1727756519076,0.20108188,63894.0,63893.0,0.1976742]
[1727756519326,0.02636174,63894.0,63893.0,0.1976742]
[1727756519783,0.20109324,63894.0,63893.0,0.1976742]
[1727756520611,0.02636174,63894.0,63893.0,0.1976742]
[1727756521281,0.31853832,63894.0,63893.0,0.1976742]
[1727756521489,0.20097672,63894.0,63893.0,0.1976742]
[1727756523005,0.12041642,63894.0,63893.0,0.1976742]
[1727756523296,0.02636174,63894.0,63893.0,0.1976742]
[1727756523549,0.29503529,63894.0,63893.0,0.1976742]
[1727756523788,0.29503428,63894.0,63893.0,0.1976742]
[1727756524019,0.29503596,63894.0,63893.0,0.1976742]
[1727756524251,0.20097672,63894.0,63893.0,0.1976742]
[1727756524494,0.29503514,63894.0,63893.0,0.1976742]
[1727756525496,0.20097672,63894.0,63893.0,0.1976742]
[1727756526019,0.04884922,63894.0,63893.0,0.33543351]
[1727756526276,0.04884922,63894.0,63893.0,0.50793351]
[1727756528082,0.04884922,63894.0,63893.0,0.48896352]
[1727756528332,0.04884922,63894.0,63893.0,0.2744742]
[1727756528762,0.04884922,63894.0,63893.0,0.1956742]
[1727756528975,0.02636427,63894.0,63893.0,0.1956742]
[1727756529193,0.26988396,63894.0,63893.0,0.1976742]
[1727756529409,0.29442552,63894.0,63893.0,0.1976742]
[1727756530510,0.20036859,63894.0,63893.0,0.1956742]
[1727756531243,0.31793019,63894.0,63893.0,0.1956742]
[1727756535417,0.17582703,63894.0,63893.0,0.1956742]
[1727756535629,0.26988673,63894.0,63893.0,0.1956742]
[1727756536105,0.001823,63894.0,63893.0,0.1976742]
[1727756536323,0.001823,63894.0,63893.0,0.1956742]
[1727756536533,0.17575595,63894.0,63893.0,0.1956742]
[1727756536742,0.17575595,63894.0,63893.0,0.1976742]
[1727756538518,0.29435713,63894.0,63893.0,0.1976742]
[1727756539639,0.17575595,63894.0,63893.0,0.1976742]
[1727756539858,0.07237354,63894.0,63893.0,0.2788742]
[1727756540292,0.1194171,63894.0,63893.0,0.2768742]
[1727756540505,0.17593363,63894.0,63893.0,0.2768742]
[1727756542465,0.29352871,63894.0,63893.0,0.2768742]
[1727756542723,0.31807028,63894.0,63893.0,0.2768742]
[1727756544027,0.2004752,63894.0,63893.0,0.2768742]
[1727756544454,0.31807028,63894.0,63893.0,0.2768742]
[1727756547175,0.29352871,63894.0,63893.0,0.2768742]
[1727756548725,0.29352871,63894.0,63893.0,0.1956742]
[1727756548949,0.17593363,63894.0,63893.0,0.0391632]
[1727756549193,0.17593363,63894.0,63893.0,0.03388123]
[1727756549194,0.69589167,63894.0,63893.0,0.03388123]
[1727756549413,0.53715295,63894.0,63893.0,0.03388123]
[1727756549629,0.62749658,63894.0,63893.0,0.021]
[1727756550057,0.62649658,63894.0,63893.0,0.012]
[1727756550295,0.57824406,63894.0,63893.0,0.012]
[1727756550562,0.57824406,63894.0,63893.0,0.003]
[1727756550783,0.57824406,63894.0,63893.0,0.008]
[1727756551009,0.57824406,63894.0,63893.0,0.005]
[1727756551236,0.58224406,63894.0,63893.0,0.005]
[1727756551453,0.156523,63889.0,63885.0,0.00692597]
[1727756551704,0.31292124,63888.0,63885.0,0.00692597]
[1727756551944,0.31292124,63888.0,63886.0,0.01289691]
[1727756552381,0.17195426,63887.0,63885.0,0.00692597]
[1727756552601,0.17195426,63886.0,63885.0,0.00692597]
[1727756552829,0.17195426,63886.0,63885.0,0.16345497]
[1727756553543,0.004,63888.0,63885.0,0.16345497]
[1727756553781,0.17195426,63887.0,63885.0,0.16345497]
[1727756554007,0.17195426,63887.0,63886.0,0.156528]
[1727756554227,0.14096698,63889.0,63885.0,0.00692597]
[1727756554460,0.17376275,63888.0,63887.0,0.156526]
[1727756554906,0.17376275,63889.0,63887.0,0.01290102]
[1727756555331,0.17376275,63889.0,63886.0,0.156528]
[1727756555555,0.17376275,63889.0,63888.0,0.01289678]
[1727756555761,0.17376275,63889.0,63887.0,0.01290065]
[1727756555991,0.17376275,63889.0,63888.0,0.01289698]
[1727756556430,0.17376275,63889.0,63886.0,0.156528]
[1727756556654,0.19830846,63889.0,63887.0,0.01290085]
[1727756556912,0.17376275,63888.0,63887.0,0.01290085]
[1727756559189,0.17776275,63888.0,63887.0,0.01290085]
[1727756562486,0.2950442,63888.0,63887.0,0.01290085]
[1727756562924,0.4515672,63888.0,63887.0,0.01290085]
[1727756563158,0.4515672,63888.0,63885.0,0.00692597]
[1727756563373,0.09382044,63886.0,63885.0,0.00692597]
[1727756563586,0.26758319,63886.0,63885.0,0.00692597]
[1727756564236,0.26758319,63886.0,63885.0,0.16345697]
[1727756565989,0.29190789,63886.0,63885.0,0.16345697]
[1727756566212,0.29390789,63886.0,63885.0,0.16345697]
[1727756566428,0.20010391,63886.0,63885.0,0.16345697]
[1727756566895,0.20010391,63886.0,63885.0,0.163175]
[1727756567172,0.20010391,63886.0,63885.0,0.16345697]
[1727756568442,0.09689431,63886.0,63885.0,0.16345697]
[1727756569116,0.09689431,63886.0,63885.0,0.17637319]
[1727756569358,0.09489178,63886.0,63885.0,0.17637319]
[1727756569588,0.09589178,63886.0,63885.0,0.17637319]
[1727756570320,0.09589178,63886.0,63885.0,0.17837319]
[1727756570555,0.09589178,63886.0,63885.0,0.17937319]
[1727756574199,0.09589178,63886.0,63885.0,0.17737319]
[1727756574424,0.02454603,63886.0,63885.0,0.17637319]
[1727756574634,0.02454603,63886.0,63885.0,0.17737319]
[1727756574883,0.02554603,63886.0,63885.0,0.17737319]
[1727756575305,0.02454603,63886.0,63885.0,0.18037319]
[1727756575529,0.02454603,63886.0,63885.0,0.18137319]
[1727756575943,0.02454603,63886.0,63885.0,0.18037319]
[1727756576397,0.1981019,63886.0,63885.0,0.18037319]
[1727756576619,0.02454603,63886.0,63885.0,0.17637319]
[1727756576844,0.02454603,63886.0,63885.0,0.17837319]
[1727756577060,0.02454603,63886.0,63885.0,0.17637319]
[1727756577549,0.02454603,63886.0,63885.0,0.17937319]
[1727756577815,0.19812122,63886.0,63885.0,0.17937319]
[1727756578032,0.19812122,63886.0,63885.0,0.02384219]
[1727756578243,0.02454603,63886.0,63885.0,0.02384219]
[1727756578453,0.19817407,63886.0,63885.0,0.01984219]
[1727756579507,0.2919684,63886.0,63885.0,0.01984219]
[1727756579710,0.26742237,63886.0,63885.0,0.01984219]
[1727756580163,0.09461733,63886.0,63885.0,0.17837319]
[1727756580369,0.26824537,63886.0,63885.0,0.01984219]
[1727756580825,0.26824537,63886.0,63885.0,0.02184219]
[1727756581043,0.26824537,63886.0,63885.0,0.01984219]
[1727756581260,0.26924537,63886.0,63885.0,0.01984219]
[1727756581511,0.26924537,63886.0,63885.0,0.17737319]
[1727756581721,0.26824537,63886.0,63885.0,0.17737319]
[1727756581940,0.26824537,63886.0,63885.0,0.17837319]
[1727756582166,0.26924537,63886.0,63885.0,0.02184219]
[1727756582605,0.29278886,63886.0,63885.0,0.02184219]
[1727756583266,0.29278886,63886.0,63885.0,0.01984219]
[1727756583476,0.19899453,63886.0,63885.0,0.17837319]
[1727756583699,0.19899453,63886.0,63885.0,0.02084219]
[1727756583969,0.29285046,63886.0,63885.0,0.17637319]
[1727756584186,0.29385046,63886.0,63885.0,0.17737319]
[1727756584400,0.19899453,63886.0,63885.0,0.17737319]
[1727756584854,0.19899453,63886.0,63885.0,0.17837319]
[1727756585075,0.19899453,63886.0,63885.0,0.02084219]
[1727756585315,0.19899453,63886.0,63885.0,0.02284219]
[1727756585553,0.31623745,63886.0,63885.0,0.02284219]
[1727756585765,0.31623745,63886.0,63885.0,0.17937319]
[1727756587293,0.51198033,63886.0,63885.0,0.01756022]
[1727756587506,0.51197631,63886.0,63885.0,0.01756022]
[1727756587718,0.51197631,63886.0,63885.0,0.004644]
[1727756588375,0.65283698,63886.0,63885.0,0.004644]
[1727756588819,0.49630898,63886.0,63885.0,0.004644]
[1727756589060,0.29184128,63886.0,63885.0,0.33375697]
[1727756589309,0.04777824,63886.0,63885.0,0.44667598]
[1727756589539,0.000823,63886.0,63885.0,0.44667598]
[1727756589984,0.000823,63886.0,63885.0,0.44367598]
[1727756590469,0.000823,63886.0,63885.0,0.44667598]
[1727756591133,0.000823,63886.0,63885.0,0.46067598]
[1727756591768,0.001823,63886.0,63885.0,0.47467598]
[1727756591982,0.001823,63886.0,63885.0,0.47667598]
[1727756593769,0.02636287,63886.0,63885.0,0.47667598]
[1727756594849,0.02562211,63886.0,63885.0,0.47667598]
[1727756598894,0.00108224,63886.0,63885.0,0.47667598]
[1727756601190,0.0256221,63886.0,63885.0,0.47667598]
[1727756607167,0.00108224,63886.0,63885.0,0.47667598]
[1727756610476,0.02562176,63886.0,63885.0,0.47667598]
[1727756611792,0.02562176,63886.0,63885.0,0.38587598]
[1727756612032,0.02562176,63886.0,63885.0,0.30937598]
[1727756617757,0.00108224,63886.0,63885.0,0.30937598]
[1727756620633,0.02562321,63886.0,63885.0,0.30937598]
[1727756623984,0.02562321,63886.0,63885.0,0.05284498]
[1727756624218,0.02562321,63886.0,63885.0,0.04556301]
[1727756624219,0.15761024,63886.0,63885.0,0.04556301]
[1727756624487,0.45202412,63886.0,63885.0,0.04556301]
[1727756624712,0.3347612,63886.0,63885.0,0.032644]
[1727756624926,0.3347612,63886.0,63885.0,0.02856766]
[1727756625139,0.3347612,63886.0,63885.0,0.03756766]
[1727756625356,0.45210975,63886.0,63885.0,0.024644]
[1727756625587,0.3337612,63886.0,63885.0,0.010644]
[1727756626010,0.18215378,63886.0,63885.0,0.03056766]
[1727756626211,0.02562578,63886.0,63885.0,0.03056766]
[1727756626435,0.20157175,63886.0,63885.0,0.01456766]
[1727756626646,0.20157175,63886.0,63885.0,0.02056766]
[1727756627057,0.20157175,63886.0,63885.0,0.01656766]
[1727756627263,0.20157175,63886.0,63885.0,0.01856766]
[1727756627412,0.20157175,63886.0,63885.0,0.02056766]
[1727756627635,0.02462578,63886.0,63885.0,0.02056766]
[1727756627834,0.02462578,63886.0,63885.0,0.02556766]
[1727756628037,0.02462578,63886.0,63885.0,0.02756766]
[1727756628445,0.20160501,63886.0,63885.0,0.02756766]
[1727756628650,0.18115378,63886.0,63885.0,0.02356766]
[1727756628898,0.18115378,63886.0,63885.0,0.02656766]
[1727756629305,0.02462578,63886.0,63885.0,0.02656766]
[1727756629507,0.02462578,63886.0,63885.0,0.02856766]
[1727756629686,0.18115378,63886.0,63885.0,0.02856766]
[1727756629888,0.18115378,63886.0,63885.0,0.01956766]
[1727756630310,0.02462578,63886.0,63885.0,0.02456766]
[1727756630519,0.02462578,63886.0,63885.0,0.01956766]
[1727756630942,0.02462578,63886.0,63885.0,0.02456766]
[1727756631596,0.18115378,63886.0,63885.0,0.02456766]
[1727756631809,0.02462578,63886.0,63885.0,0.02456766]
[1727756633068,8.224e-05,63886.0,63885.0,0.02456766]
[1727756633721,0.17742127,63886.0,63885.0,0.02456766]
[1727756636197,0.20196459,63886.0,63885.0,0.02456766]
[1727756636681,0.02462556,63886.0,63885.0,0.02256766]
[1727756637129,0.18115356,63886.0,63885.0,0.02256766]
[1727756637340,0.02462556,63886.0,63885.0,0.02256766]
[1727756638797,0.29477645,63886.0,63885.0,0.02256766]
[1727756639484,0.31931981,63886.0,63885.0,0.02256766]
[1727756640569,0.20194387,63886.0,63885.0,0.02256766]
[1727756640781,0.31931981,63886.0,63885.0,0.02256766]
[1727756641001,0.31939175,63886.0,63885.0,0.02256766]
[1727756641889,0.31939175,63886.0,63885.0,0.02456766]
[1727756642329,0.31939175,63886.0,63885.0,0.011644]
[1727756642547,0.31939175,63886.0,63885.0,0.009644]
[1727756643203,0.29484839,63886.0,63885.0,0.009644]
[1727756644984,0.29484839,63886.0,63885.0,0.02257549]
[1727756645203,0.45137639,63886.0,63885.0,0.02257549]
[1727756645870,0.33400471,63886.0,63885.0,0.02257549]
[1727756646084,0.20202005,63886.0,63885.0,0.02257549]
[1727756646764,0.35854805,63886.0,63885.0,0.02257549]
[1727756646972,0.51500585,63886.0,63885.0,0.02257549]
[1727756647872,0.51500585,63886.0,63885.0,0.01457549]
[1727756648081,0.51500585,63886.0,63885.0,0.01657549]
[1727756649030,0.51500585,63886.0,63885.0,0.01557549]
[1727756649258,0.51500585,63886.0,63885.0,0.01957549]
[1727756649486,0.51500585,63886.0,63885.0,0.005644]
[1727756649916,0.49046251,63886.0,63885.0,0.007644]
[1727756650420,0.49026653,63886.0,63885.0,0.007644]
[1727756650821,0.49026653,63886.0,63885.0,0.011644]
[1727756651065,0.49026653,63886.0,63885.0,0.02457549]
[1727756651286,0.49026653,63886.0,63885.0,0.001644]
[1727756651502,0.49026653,63886.0,63885.0,0.01657549]
[1727756651761,0.49026653,63886.0,63885.0,0.003644]
[1727756651995,0.49026653,63886.0,63885.0,0.01657549]
[1727756652224,0.49026653,63886.0,63885.0,0.01857549]
[1727756652943,0.5148099,63886.0,63885.0,0.01857549]
[1727756653192,0.49026653,63886.0,63885.0,0.01857549]
[1727756653626,0.5148099,63886.0,63885.0,0.01857549]
[1727756653831,0.5148099,63886.0,63885.0,0.01457549]
[1727756654307,0.5148099,63886.0,63885.0,0.01657549]
[1727756654736,0.5148099,63886.0,63885.0,0.01857549]
[1727756655256,0.51496459,63886.0,63885.0,0.01857549]
[1727756655701,0.51496459,63886.0,63885.0,0.02057549]
[1727756655936,0.51496459,63886.0,63885.0,0.01857549]
[1727756656170,0.51496459,63886.0,63885.0,0.005644]
[1727756656407,0.65590796,63886.0,63885.0,0.005644]
[1727756657617,0.51496459,63886.0,63885.0,0.005644]
[1727756657859,0.67363435,63886.0,63885.0,0.005644]
[1727756658837,0.64909098,63886.0,63885.0,0.005644]
[1727756659088,0.11878932,63874.0,63871.0,0.23677793]
[1727756659354,0.156563,63872.0,63871.0,0.23677793]
[1727756659598,0.156563,63872.0,63865.0,0.00692797]
[1727756659599,0.33381098,63872.0,63865.0,0.00692797]
[1727756659841,0.11878932,63869.0,63865.0,0.00692797]
[1727756660097,0.17735318,63868.0,63867.0,0.00528197]
[1727756660341,0.17735318,63868.0,63867.0,0.00728197]
[1727756660601,0.11744059,63868.0,63867.0,0.00728197]
[1727756661090,0.17735318,63868.0,63867.0,0.00728197]
[1727756661567,0.29476386,63868.0,63867.0,0.00728197]
[1727756662060,0.29476386,63868.0,63867.0,0.01128197]
[1727756662536,0.17735318,63868.0,63867.0,0.01428197]
[1727756663270,0.27126162,63868.0,63867.0,0.01428197]
[1727756663507,0.17735318,63868.0,63867.0,0.01428197]
[1727756664209,0.27126162,63868.0,63867.0,0.01428197]
[1727756664442,0.11845773,63869.0,63868.0,0.002]
[1727756664674,0.29551967,63869.0,63868.0,0.002]
[1727756664910,0.29549673,63869.0,63868.0,0.002]
[1727756665382,0.20161594,63869.0,63868.0,0.002]
[1727756665625,0.20161594,63869.0,63868.0,0.004]
[1727756665883,0.02454929,63869.0,63868.0,0.004]
[1727756666115,0.29555596,63869.0,63868.0,0.007]
[1727756666360,0.35824517,63869.0,63868.0,0.007]
[1727756666835,0.45212596,63869.0,63868.0,0.007]
[1727756667572,0.35824517,63869.0,63868.0,0.005]
[1727756667796,0.45212596,63869.0,63868.0,0.005]
[1727756668038,0.45212596,63869.0,63868.0,0.01800047]
[1727756668039,0.35824517,63869.0,63868.0,0.01800047]
[1727756668280,0.47559616,63869.0,63868.0,0.005]
[1727756668518,0.63205396,63869.0,63868.0,0.005]
[1727756668752,0.76135095,63869.0,63868.0,0.005]
[1727756669232,0.51470297,63869.0,63868.0,0.005]
[1727756669727,0.84614975,63869.0,63868.0,0.005]
[1727756669963,1.09279773,63869.0,63868.0,0.005]
[1727756670163,1.09279773,63869.0,63868.0,0.003]
[1727756671132,0.156577,63866.0,63865.0,0.001646]
[1727756671364,0.60895,63866.0,63865.0,0.001646]
[1727756671796,0.65201322,63866.0,63865.0,0.001646]
[1727756672493,0.65701322,63866.0,63865.0,0.001646]
[1727756672925,0.61395,63866.0,63865.0,0.001646]
[1727756673385,0.49516068,63866.0,63865.0,0.001646]
[1727756673633,0.61395,63866.0,63865.0,0.001646]
[1727756676358,0.73111224,63866.0,63865.0,0.001646]
[1727756679411,0.61395,63866.0,63865.0,0.001646]
[1727756679610,0.61249892,63866.0,63865.0,0.001646]
[1727756681143,0.156594,63859.0,63858.0,0.00728197]
[1727756681587,0.20343722,63859.0,63858.0,0.00728197]
[1727756681813,0.22799015,63859.0,63858.0,0.00728197]
[1727756682470,0.22799015,63859.0,63858.0,0.01128197]
[1727756682471,0.18114693,63859.0,63858.0,0.01128197]
[1727756682929,0.18114693,63859.0,63858.0,0.01628197]
[1727756683392,0.18114693,63859.0,63858.0,0.01792797]
[1727756683829,0.18114693,63859.0,63858.0,0.01392797]
[1727756684039,0.18114693,63859.0,63858.0,0.00892797]
[1727756684467,0.18214693,63859.0,63858.0,0.00892797]
[1727756685111,0.18414693,63859.0,63858.0,0.00892797]
[1727756686007,0.18414693,63859.0,63858.0,0.08912797]
[1727756687065,0.18114693,63859.0,63858.0,0.08912797]
[1727756687284,0.18314693,63859.0,63858.0,0.08912797]
[1727756687504,0.18414693,63859.0,63858.0,0.001646]
[1727756687770,0.22899015,63859.0,63858.0,0.001646]
[1727756687969,0.253418,63859.0,63858.0,0.001646]
[1727756688200,0.18514693,63859.0,63858.0,0.001646]
[1727756688411,0.8462896,63859.0,63858.0,0.001646]
[1727756688839,0.74213667,63859.0,63858.0,0.001646]
[1727756689292,0.58568989,63859.0,63858.0,0.001646]
[1727756689526,0.60899141,63859.0,63858.0,0.001646]
[1727756690201,0.60884902,63859.0,63858.0,0.001646]
[1727756690634,0.49174596,63859.0,63858.0,0.001646]
[1727756691130,0.51630186,63859.0,63858.0,0.001646]
[1727756691362,0.27540832,63849.0,63848.0,0.00528197]
[1727756691799,0.27540832,63849.0,63848.0,0.01843331]
[1727756692457,0.29996457,63849.0,63848.0,0.00528197]
[1727756692907,0.29996457,63849.0,63848.0,0.01843331]
[1727756693160,0.02455625,63849.0,63848.0,0.01843331]
[1727756693382,0.02455625,63849.0,63848.0,0.00528197]
[1727756693614,0.02455625,63849.0,63848.0,0.02843331]
[1727756693842,0.02555625,63849.0,63848.0,0.03643331]
[1727756694706,0.18217525,63849.0,63848.0,0.03643331]
[1727756696001,0.18217525,63849.0,63848.0,0.03807931]
[1727756696253,0.18217525,63849.0,63848.0,0.04007931]
[1727756696475,0.18217525,63849.0,63848.0,0.02692797]
[1727756696700,0.02555625,63849.0,63848.0,0.02692797]
[1727756697121,0.02555625,63849.0,63848.0,0.03913269]
[1727756697341,0.02555625,63849.0,63848.0,0.37245369]
[1727756698689,0.001,63849.0,63848.0,0.37245369]
[1727756700004,0.02555548,63849.0,63848.0,0.37245369]
[1727756704960,0.001,63849.0,63848.0,0.37245369]
[1727756707907,0.02555521,63849.0,63848.0,0.37245369]
[1727756712417,0.07241682,63849.0,63848.0,0.37245369]
[1727756712651,0.07255083,63849.0,63848.0,0.37245369]
[1727756714317,0.02555521,63849.0,63848.0,0.37245369]
[1727756717387,0.09604865,63849.0,63848.0,0.37245369]
[1727756718378,0.07149344,63849.0,63848.0,0.37245369]
[1727756721352,0.09604854,63849.0,63848.0,0.37245369]
[1727756722558,0.0255551,63849.0,63848.0,0.37245369]
[1727756725853,0.20123946,63849.0,63848.0,0.37245369]
[1727756728476,0.20125976,63849.0,63848.0,0.37245369]
[1727756728710,0.001,63849.0,63848.0,0.37245369]
[1727756728922,0.1767002,63849.0,63848.0,0.37245369]
[1727756729810,0.02555515,63849.0,63848.0,0.37245369]
[1727756731087,0.09610773,63849.0,63848.0,0.37245369]
[1727756731588,0.02555515,63849.0,63848.0,0.37245369]
[1727756732292,0.20133378,63849.0,63848.0,0.37245369]
[1727756732518,0.29532503,63849.0,63848.0,0.37245369]
[1727756734143,0.20129515,63849.0,63848.0,0.39144773]
[1727756734389,0.20129515,63849.0,63848.0,0.39144851]
[1727756734648,0.2952864,63849.0,63848.0,0.37245369]
[1727756734890,0.02555515,63849.0,63848.0,0.37245369]
[1727756735160,0.02555515,63849.0,63848.0,0.39144827]
[1727756735373,0.09610965,63849.0,63848.0,0.39144827]
[1727756735622,0.09610965,63849.0,63848.0,0.39144551]
[1727756736532,0.09610965,63849.0,63848.0,0.29174551]
[1727756736763,0.02555515,63849.0,63848.0,0.79818263]
[1727756736993,0.02555515,63849.0,63848.0,0.83868179]
[1727756737468,0.02455515,63849.0,63848.0,0.83068179]
[1727756737965,0.04703716,63861.0,63857.0,0.00928197]
[1727756737968,0.23760093,63858.0,63857.0,0.49937097]
[1727756738198,0.23760093,63858.0,63857.0,0.81410907]
[1727756738521,0.23760093,63858.0,63857.0,0.82627001]
[1727756738759,0.000823,63865.0,63857.0,0.82627001]
[1727756738760,0.000823,63865.0,63864.0,0.40904329]
[1727756739060,0.000823,63865.0,63864.0,0.73460109]
[1727756739291,0.000823,63865.0,63864.0,0.76572602]
[1727756739514,0.000823,63865.0,63864.0,0.77072602]
[1727756739963,0.000823,63865.0,63864.0,0.6519367]
[1727756740192,0.000823,63865.0,63864.0,0.77072602]
[1727756740428,0.000823,63865.0,63864.0,0.78472602]
[1727756741314,0.000823,63865.0,63864.0,0.76573491]
[1727756742010,0.000823,63865.0,63864.0,0.77973491]
[1727756746664,0.000823,63865.0,63864.0,0.77773491]
[1727756746876,0.000823,63865.0,63864.0,0.77973491]
[1727756748389,0.02536921,63865.0,63864.0,0.77973491]
[1727756751377,0.02536921,63865.0,63864.0,0.77773491]
[1727756751608,0.02536921,63865.0,63864.0,0.77973491]
[1727756754371,0.000823,63865.0,63864.0,0.77973491]
[1727756757649,0.000823,63865.0,63864.0,0.66094559]
[1727756757909,0.000823,63865.0,63864.0,0.77973491]
[1727756758581,0.02536956,63865.0,63864.0,0.77973491]
[1727756759052,0.02536956,63865.0,63864.0,0.20399779]
[1727756759514,0.02536956,63865.0,63864.0,0.04741579]
[1727756759721,0.18194956,63865.0,63864.0,0.04741579]
[1727756759932,0.18194956,63865.0,63864.0,0.03528197]
[1727756760176,0.18194956,63865.0,63864.0,0.02128197]
[1727756760602,0.18194956,63865.0,63864.0,0.02728197]
[1727756760837,0.18194956,63865.0,63864.0,0.01328197]
[1727756761053,0.02536956,63865.0,63864.0,0.00728197]
[1727756761267,0.02536956,63865.0,63864.0,0.01628197]
[1727756761490,0.02536956,63865.0,63864.0,0.0283683]
[1727756761674,0.02536956,63865.0,63864.0,0.0193683]
[1727756761932,0.02536956,63865.0,63864.0,0.0223683]
[1727756762621,0.02536956,63865.0,63864.0,0.0273683]
[1727756763050,0.02536956,63865.0,63864.0,0.1839503]
[1727756763259,0.02536956,63865.0,63864.0,0.0273683]
[1727756763554,0.02536956,63865.0,63864.0,0.1839503]
[1727756764226,0.02536956,63865.0,63864.0,0.0273683]
[1727756764442,0.000823,63865.0,63864.0,0.0273683]
[1727756764653,0.000823,63865.0,63864.0,0.1839503]
[1727756776567,0.000823,63865.0,63864.0,0.28018168]
[1727756778371,0.02537046,63865.0,63864.0,0.28018168]
[1727756778578,0.02537046,63865.0,63864.0,0.2770503]
[1727756778808,0.02537046,63865.0,63864.0,0.1839503]
[1727756779227,0.02537046,63865.0,63864.0,0.1789503]
[1727756779663,0.02537046,63865.0,63864.0,0.1899503]
[1727756779835,0.02537046,63865.0,63864.0,0.1869503]
[1727756780251,0.07229934,63865.0,63864.0,0.1959503]
[1727756780479,0.02537046,63865.0,63864.0,0.1959503]
[1727756781298,0.07229934,63865.0,63864.0,0.1959503]
[1727756782232,0.02537046,63865.0,63864.0,0.1959503]
[1727756782441,0.072342,63865.0,63864.0,0.1959503]
[1727756782734,0.20163622,63865.0,63864.0,0.1959503]
[1727756782925,0.02537046,63865.0,63864.0,0.1959503]
[1727756783059,0.11922823,63865.0,63864.0,0.1959503]
[1727756783465,0.2955188,63865.0,63864.0,0.0393683]
[1727756784357,0.29551842,63865.0,63864.0,0.0393683]
[1727756789009,0.27097096,63865.0,63864.0,0.0393683]
[1727756790322,0.27097096,63865.0,63864.0,0.1959503]
[1727756790560,0.27097096,63865.0,63864.0,0.0393683]
[1727756792130,0.29552046,63865.0,63864.0,0.0393683]
[1727756793455,0.27097096,63865.0,63864.0,0.0393683]
[1727756793967,0.27097096,63865.0,63864.0,0.1959503]
[1727756794189,0.27099292,63865.0,63864.0,0.1959503]
[1727756794655,0.27099292,63865.0,63864.0,0.0393683]
[1727756794884,0.17702953,63865.0,63864.0,0.0393683]
[1727756795353,0.27099292,63865.0,63864.0,0.0393683]
[1727756795764,0.27099292,63865.0,63864.0,0.1959503]
[1727756796000,0.27099292,63865.0,63864.0,0.0393683]
[1727756796658,0.29554229,63865.0,63864.0,0.0393683]
[1727756798223,0.27099292,63865.0,63864.0,0.0393683]